Cogmind - Beta 9.3 @@@ ROGUE MODE // 2020.01.06 @ 21:46:04 // Winter2019/RPGLIKE Player: delet0r Result: Destroyed by G-67 Veteran with Electrolaser Performance ------------- Evolutions (7) 3500 Regions Visited (24) 4800 Robots Destroyed (566) 2830 Value Destroyed (25331) 25331 Prototype IDs (39) 780 Alien Tech Used (1) 200 Bonus (14971) 14971 TOTAL SCORE: 52412 Bonus ------- Triggered High Security 1000 High Alert Combat Kills 11171 Follower Combat Kills 1023 Entered Garrisons 400 Met Data Miner 300 Met Warlord at Base 500 MAIN.C Attacked Warlord 500 Warlord Defense Kill 2022 Built Enhanced Grunts 300 Met R17 at Cetus 500 Friendly Fire -2745 Cogmind --------- Core Integrity 0/2150 Matter 405/800 Energy 9/1930 System Corruption 0% Temperature Cool (120) Movement Flying (28) Location -3/Research Parts ------- > --- POWER (3) -------- F-cell Engine Particle Reactor Light Quantum Reactor > --- PROPULSION (6) --- Cooled Cesium-ion Thruster Cooled Cesium-ion Thruster Q-thruster Impulse Thruster Array > --- UTILITY (9) ------ Experimental Energy Well Advanced Matter Compressor Experimental Signal Interpreter Improved Targeting Computer Experimental Target Analyzer Recoil Nullifier Kinecellerator Centrium Medium Armor Plating Force Field > --- WEAPON (5) ------- KE Penetrator Railgun > --- INVENTORY (7) ---- Protomatter-85 Protomatter-21 Protomatter-96 Makeshift Terrain Scanner Long-range Missile Launcher Advanced Remote Datajack Chainsword Peak State ------------ > --- POWER ------------ F-cell Engine Particle Reactor Light Quantum Reactor > --- PROPULSION ------- Cooled Cesium-ion Thruster Cooled Cesium-ion Thruster Impulse Thruster Q-thruster Impulse Thruster Array > --- UTILITY ---------- Experimental Energy Well Advanced Matter Compressor Experimental Signal Interpreter Improved Targeting Computer Experimental Target Analyzer Recoil Nullifier Kinecellerator Centrium Medium Armor Plating Force Field > --- WEAPON ----------- Coil Gun KE Penetrator Railgun Railgun Improved KE Penetrator > --- INVENTORY -------- Protomatter Protomatter Protomatter Makeshift Terrain Scanner Long-range Missile Launcher Advanced Remote Datajack Chainsword [Rating: 159] Favorites ----------- Power F-cell Engine Engine F-cell Engine Power Core Enhanced Nuclear Core Reactor Light Quantum Reactor Propulsion Cooled Cesium-ion Thruster Leg Carbon-fiber Leg Wheel Compact Wheel Hover Unit Hover Unit Flight Unit Cooled Cesium-ion Thruster Utility Advanced Signal Interpreter Device Makeshift Terrain Scanner Storage Experimental Energy Well Processor Advanced Signal Interpreter Protection Centrium Medium Armor Plating Weapon Improved KE Penetrator Energy Gun Precision Shock Rifle Energy Cannon Neutron Cannon Ballistic Gun Improved KE Penetrator Ballistic Cannon Antimatter Cannon Launcher Proton Missile Launcher Special Weapon Improved Remote Datajack Slashing Weapon Chainsword Special Melee Weapon Improved Datajack Build | -11 -10 -9 -8 -8 -7 -7 -7 -7 -6 -6 -6 -6 -6 -6 -6 -6 -6 -5 -5 -5 -5 -4 -4 -3 ------- Run | Scr Mat Mat Mat Gar Fac Low Low Dat Pro Fac Was Fac Ext Cet Arc Hub Gar Fac Upp Upp War Pro Fac Res Slots Evolved 18 | 1 1 4 1 1 3 . 1 . 1 . . 2 . . . . . 1 . . . . 2 . Power 2 | . . . . . . . 1 . . . . . . . . . . . . . . . 1 . Propulsion 4 | . . 1 1 . . . . . . . . 1 . . . . . . . . . . 1 . Utility 8 | . . 3 . 1 2 . . . 1 . . . . . . . . 1 . . . . . . Weapon 4 | 1 1 . . . 1 . . . . . . 1 . . . . . . . . . . . . Parts Attached 233 | 4 6 11 7 3 26 15 13 . 5 6 1 16 6 7 2 17 8 25 4 . 9 2 29 11 Power 23 | 1 1 1 . 1 2 . 2 . . 2 . 2 . . . . . 3 . . 3 . 4 1 Engine 12 | 1 . . . 1 2 . 2 . . 1 . . . . . . . 3 . . 2 . . . Core 7 | . 1 1 . . . . . . . 1 . 2 . . . . . . . . . . 2 . Reactor 4 | . . . . . . . . . . . . . . . . . . . . . 1 . 2 1 Propulsion 31 | 1 1 3 3 . 3 1 3 . . 1 . 6 1 . . . . 1 . . . 1 3 3 Treads . | . . . . . . . . . . . . . . . . . . . . . . . . . Leg 2 | . . . . . . 1 1 . . . . . . . . . . . . . . . . . Wheel 3 | 1 1 1 . . . . . . . . . . . . . . . . . . . . . . Hover 2 | . . 2 . . . . . . . . . . . . . . . . . . . . . . Flight 24 | . . . 3 . 3 . 2 . . 1 . 6 1 . . . . 1 . . . 1 3 3 Utility 72 | . 1 4 4 1 6 3 1 . 1 1 . . . 1 . 9 4 9 3 . 6 . 16 2 Device 43 | . 1 1 2 1 2 . 1 . 1 1 . . . . . 6 2 7 3 . 4 . 10 1 Storage 9 | . . . . . . . . . . . . . . . . 1 2 1 . . 1 . 3 1 Processor 11 | . . 2 1 . 2 1 . . . . . . . . . 1 . 1 . . 1 . 2 . Hackware . | . . . . . . . . . . . . . . . . . . . . . . . . . Protection 9 | . . 1 1 . 2 2 . . . . . . . 1 . 1 . . . . . . 1 . Artifact . | . . . . . . . . . . . . . . . . . . . . . . . . . Weapon 107 | 2 3 3 . 1 15 11 7 . 4 2 1 8 5 6 2 8 4 12 1 . . 1 6 5 Energy Gun 40 | . 1 2 . . 9 4 4 . 2 1 . 4 2 1 1 3 2 3 . . . . 1 . Energy Cannon 1 | . . . . . . . . . . . 1 . . . . . . . . . . . . . Ballistic Gun 33 | 2 2 1 . 1 2 2 . . . 1 . 1 2 5 . 1 . 5 . . . 1 3 4 Ballistic Cannon 1 | . . . . . . . . . . . . . . . . 1 . . . . . . . . Launcher 8 | . . . . . 2 1 1 . . . . 1 . . . 2 . . . . . . 1 . Special Weapon 6 | . . . . . . . . . . . . . 1 . 1 . 2 1 1 . . . . . Impact Weapon . | . . . . . . . . . . . . . . . . . . . . . . . . . Slashing Weapon 12 | . . . . . 1 3 1 . . . . 1 . . . 1 . 3 . . . . 1 1 Piercing Weapon . | . . . . . . . . . . . . . . . . . . . . . . . . . Special Melee Weapon 6 | . . . . . 1 1 1 . 2 . . 1 . . . . . . . . . . . . Unidentified Prototypes 23 | . . 1 . . 3 1 . . . 1 . 1 . 3 . 4 . 2 . . 6 . 1 . Parts Lost 7 | . . . . . 1 . 1 . . . . . . . . . . . . . . . 4 1 Power . | . . . . . . . . . . . . . . . . . . . . . . . . . Propulsion 3 | . . . . . . . 1 . . . . . . . . . . . . . . . 1 1 Utility 4 | . . . . . 1 . . . . . . . . . . . . . . . . . 3 . Weapon . | . . . . . . . . . . . . . . . . . . . . . . . . . Highest Loss Streak 3 | . . . . . 1 . 1 . . . . . . . . . . . . . . . 3 1 Average Slot Usage (%) 98 | . 92 99 100 98 99 99 99 100 100 99 100 99 100 100 100 99 100 99 100 100 99 100 90 92 Engine 5 | . 13 . . 6 6 6 8 11 11 9 5 . . . . . . 7 9 9 9 9 6 4 Core 3 | . 3 12 9 2 . . . . . 1 5 9 10 10 10 10 10 1 . . . . 1 . Wheel 1 | . 16 5 . . . . . . . . . . . . . . . . . . . . . . Flight 19 | . . . 23 25 21 19 17 17 16 16 16 22 25 25 25 25 25 23 23 23 23 23 20 20 Device 22 | . 9 12 16 23 22 19 17 17 17 23 27 26 25 25 25 24 24 30 33 33 29 28 20 16 Processor 10 | . . 14 11 8 13 19 17 17 16 14 11 10 10 10 10 10 10 4 4 4 7 9 8 13 Protection 4 | . . 1 9 8 7 6 5 5 5 5 5 5 5 5 5 5 5 4 4 4 4 4 3 4 Energy Gun 8 | . 7 21 18 16 13 11 11 11 10 11 8 10 9 10 9 9 9 8 . . . . . . Ballistic Gun 15 | . 40 15 9 8 11 12 11 11 11 10 11 11 15 14 15 15 15 14 19 19 19 21 20 19 Naked Turns . | . . . . . . . . . . . . . . . . . . . . . . . . . Heaviest Build 95 | 6 11 20 21 24 38 40 50 50 52 55 60 58 58 60 60 63 63 74 76 76 76 76 92 95 Greatest Support 104 | 21 21 27 33 33 39 44 52 50 55 55 60 76 76 76 76 76 76 76 76 76 76 80 97 104 Greatest Overweight (x) 1 | . . 1 . . 1 . . . . 1 . . . . . . . 1 . . . . . . Average Overweight (x) . | . . . . . . . . . . . . . . . . . . . . . . . . . Largest Inventory Capacity 7 | 2 2 3 3 3 4 4 4 4 5 5 5 5 5 6 6 6 6 6 6 6 6 6 7 7 Average Capacity 4 | 1 2 2 3 3 3 4 4 4 4 5 5 5 5 5 6 6 6 6 6 6 6 6 6 7 Most Carried 7 | 1 2 3 3 3 4 4 4 4 5 5 5 5 5 6 6 6 6 6 6 6 6 6 7 7 Average Carried 4 | . 1 2 3 2 3 4 4 4 4 4 4 4 4 5 6 5 6 5 6 6 5 5 6 6 Final Capacity 7 | 2 2 3 3 3 4 4 4 4 5 5 5 5 5 6 6 6 6 6 6 6 6 6 7 7 Final Carried 7 | 1 2 3 3 3 4 4 4 4 5 4 5 5 5 6 6 6 6 6 6 6 6 6 6 7 Class Distribution -------------------- 44% | Scavenger-Sprinter 14% | Hacker-Sprinter 11% | Scavenger-Gunner 9% | Scavenger-Scout 8% | Gunner 3% | Scout Dominant Class ---------------- Gunner | -10/Materials Gunner | -9/Materials Scout | -8/Materials Scavenger-Scout | -8/Garrison Scavenger-Scout | -7/Factory Scavenger-Sprinter | -7/Lower Caves Scavenger-Gunner | -7/Lower Caves Scavenger-Gunner | -7/Data Miner Scavenger-Gunner | -6/Proximity Caves Scavenger-Gunner | -6/Factory Hacker-Mutant | -6/Waste Hacker-Sprinter | -6/Factory Hacker-Sprinter | -6/Extension Scavenger-Sprinter | -6/Cetus Scavenger-Sprinter | -6/Archives Scavenger-Sprinter | -6/Hub_04(d) Scavenger-Sprinter | -6/Garrison Scavenger-Sprinter | -5/Factory Scavenger-Sprinter | -5/Upper Caves Scavenger-Sprinter | -5/Upper Caves Scavenger-Sprinter | -5/Warlord Scavenger-Sprinter | -4/Proximity Caves Scavenger-Sprinter | -4/Factory Scavenger-Sprinter | -3/Research Resources | -11 -10 -9 -8 -8 -7 -7 -7 -7 -6 -6 -6 -6 -6 -6 -6 -6 -6 -5 -5 -5 -5 -4 -4 -3 ----------- Run | Scr Mat Mat Mat Gar Fac Low Low Dat Pro Fac Was Fac Ext Cet Arc Hub Gar Fac Upp Upp War Pro Fac Res Matter Collected 12895 | 240 143 312 144 179 637 278 481 . 322 66 . 788 807 250 . 972 583 1474 475 448 458 448 2624 766 Remotely . | . . . . . . . . . . . . . . . . . . . . . . . . . Salvage Created 27311 | . 143 939 588 906 1605 507 722 . 669 147 . 2276 1690 158 112 2105 1051 3652 1015 1486 1277 616 4145 1502 Parts 1356 | . 21 68 39 53 80 34 33 . 46 17 . 125 78 13 4 118 47 152 25 40 43 40 195 85 Haulers Intercepted 15 | . 1 4 1 . 3 . . . . . . 2 . . . 2 . 1 . . . . 1 . Recyclers Shooed 14 | . . . . . 1 . . . . . . 3 . . . 2 . 5 . . . . 2 1 Parts Field Recycled . | . . . . . . . . . . . . . . . . . . . . . . . . . Retrieved Matter . | . . . . . . . . . . . . . . . . . . . . . . . . . Parts Self-Destructed 247 | . . . . . . 16 22 . 41 . . . . . . . . . 18 40 71 39 . . Prevented 58 | . . . . . . 19 14 . 18 . . . . . . . . . . . 7 . . . Kills | -11 -10 -9 -8 -8 -7 -7 -7 -7 -6 -6 -6 -6 -6 -6 -6 -6 -6 -5 -5 -5 -5 -4 -4 -3 ------- Run | Scr Mat Mat Mat Gar Fac Low Low Dat Pro Fac Was Fac Ext Cet Arc Hub Gar Fac Upp Upp War Pro Fac Res Combat Hostiles Destroyed 458 | . 7 16 10 27 29 10 21 . 18 6 . 31 28 5 1 29 19 47 16 16 19 18 56 29 Guns 430 | . 7 14 7 25 22 9 17 . 18 6 . 26 28 5 1 29 19 45 16 16 19 18 54 29 AOE 26 | . . 2 3 2 7 . 4 . . . . 4 . . . . . 2 . . . . 2 . Classes Destroyed 21 | . 3 6 2 . . 1 2 . 1 . . . . . . 1 . . . . 4 . 1 . Worker 20 | . . 1 . . 3 . . . . . . 4 . . . 5 . 1 . . . . 4 2 Builder 19 | . . 1 3 . 1 . . . . . . 1 . . . 1 . 3 . . . . 8 1 Tunneler 2 | . . . . . . . . . . . . . . . . 1 . 1 . . . . . . Hauler 15 | . 1 4 1 . 3 . . . . . . 2 . . . 2 . 1 . . . . 1 . Recycler 16 | . . . 1 . . . . . . . . 2 1 . . . . 8 . . . . 3 1 Carrier 1 | . . . . . . . . . . . . . . . . . . . . . . . 1 . Operator 7 | . . 2 . . . . . . . . . 2 . . . 1 . 1 . . . . 1 . Watcher 20 | . . 2 . . 5 . . . . 1 . . 3 . . 3 . 2 . . . . 3 1 Swarmer 115 | . 4 3 . 17 11 2 6 . 8 4 . 3 10 . . 4 5 11 2 . . 14 2 9 Saboteur 3 | . . . . . . . . . . . . . . . . . . . . . 2 . 1 . Grunt 182 | . 3 8 6 8 15 7 8 . 3 . . 16 12 . . 11 9 19 6 8 10 . 25 8 Brawler 15 | . . . 1 . . . 1 . . . . . . . . . . 1 1 1 3 . 3 4 Duelist 15 | . . 1 1 . 1 . 2 . 1 . . 1 1 . . . . 1 1 1 . . 3 1 Protector 3 | . . . . . . . . . . . . . . . . . . . . . 2 . 1 . Sentry 51 | . . 4 2 2 2 . 1 . 2 2 . 3 4 . 1 8 . 7 2 2 . . 4 5 Demolisher 1 | . . . . . . . . . . . . . . . . . . . . . 1 . . . Specialist 1 | . . . . . . . . . . . . . . . . . . . . . 1 . . . Hunter 29 | . . . . . . . 2 . 1 . . 3 . 1 . 5 3 4 . 2 . 2 6 . Programmer 29 | . . . . . . . . . 2 . . 4 . . . 1 2 4 . 1 . 2 11 2 Behemoth 5 | . . . . . . 1 . . 1 . . 1 1 . . . . . . 1 . . . . Cetus Guard 4 | . . . . . . . . . . . . . . 4 . . . . . . . . . . Enhanced Grunt 1 | . . . . . . . . . . . . . . . . 1 . . . . . . . . Thug 8 | . . . . . . . . . . . . . . 1 . . . . 4 . 3 . . . Savage 1 | . . . . . . . . . . . . . . . . 1 . . . . . . . . Bouncer 1 | . . . . . . . . . . . . . . . . . . . . . 1 . . . Guerrilla 1 | . . . . . . . . . . . . . . . . 1 . . . . . . . . Mutant 1 | . . . . . . . 1 . . . . . . . . . . . . . . . . . Best Kill Streak 18 | . 3 9 8 8 8 6 5 . 6 4 . 11 10 2 1 10 4 11 6 6 11 5 18 7 Combat Bots Only 14 | . 3 5 7 8 7 6 5 . 6 4 . 8 10 2 1 9 4 5 6 6 11 5 14 6 Max Kills in Single Turn 4 | . 1 3 3 2 3 1 3 . 2 1 . 2 2 1 1 4 2 3 2 2 3 3 2 2 Gunslinging 2 | . . 1 1 1 1 . 1 . 1 . . 1 1 . . 1 1 1 1 1 1 2 1 1 Exploded 2 | . . 1 1 2 2 . 2 . . . . 1 . . . . . 2 . . . . 1 . Melee . | . . . . . . . . . . . . . . . . . . . . . . . . . Uniques/NPCs Destroyed . | . . . . . . . . . . . . . . . . . . . . . . . . . Combat | -11 -10 -9 -8 -8 -7 -7 -7 -7 -6 -6 -6 -6 -6 -6 -6 -6 -6 -5 -5 -5 -5 -4 -4 -3 -------- Run | Scr Mat Mat Mat Gar Fac Low Low Dat Pro Fac Was Fac Ext Cet Arc Hub Gar Fac Upp Upp War Pro Fac Res Damage Taken 22068 | . 223 379 505 1181 1280 646 762 . 791 157 . 1306 1079 500 178 876 811 1586 257 570 162 618 5533 2668 Core 17636 | . 182 321 414 937 1011 532 604 . 624 119 . 1041 856 401 143 685 634 1352 201 451 128 488 4393 2119 Absorbed by Shields 8779 | . . . . 13 56 190 272 . 293 62 . 475 398 181 62 427 390 1057 266 416 172 471 1926 1652 Redirected to Core 14965 | . 134 186 335 793 911 402 525 . 558 116 . 912 751 348 126 640 598 753 192 400 119 402 3908 1856 Core Remaining (%) 82 | 100 100 93 . 70 . . . . 100 . . . . . . . 94 . . . . 86 19 . Volleys Fired 1008 | . 25 40 28 53 59 23 40 . 34 11 28 76 63 15 9 58 48 104 30 28 23 24 121 68 Largest 5 | . 3 3 3 3 4 4 4 . 4 4 4 5 5 5 5 5 5 5 4 4 4 5 5 5 Hottest 267 | . 80 113 113 113 156 156 170 . 170 170 170 200 226 241 241 241 241 267 138 138 138 168 181 168 Shots Fired 3847 | . 71 120 82 149 213 54 152 . 136 44 48 294 295 75 35 288 198 439 105 112 92 107 487 251 Gun 3794 | . 71 120 82 149 213 42 150 . 136 44 34 290 290 75 33 288 191 439 100 112 92 107 485 251 Cannon 14 | . . . . . . . . . . . 14 . . . . . . . . . . . . . Launcher 20 | . . . . . . 12 2 . . . . 4 . . . . . . . . . . 2 . Special 19 | . . . . . . . . . . . . . 5 . 2 . 7 . 5 . . . . . Kinetic 2597 | . 59 46 28 43 100 22 79 . 68 22 6 146 174 45 19 174 117 306 100 112 92 107 481 251 Thermal 258 | . . . . . . . . . . . 14 . 19 15 7 58 37 104 . . . . 4 . Explosive 2 | . . . . . . . . . . . . . . . . . . . . . . . 2 . Electromagnetic 971 | . 12 74 54 106 113 32 73 . 68 22 28 148 97 15 7 56 37 29 . . . . . . Robot Hit Streak 50 | . 9 27 9 12 50 15 33 . 19 9 18 28 30 8 14 14 14 30 39 19 19 11 22 36 Robot Miss Streak 7 | . 3 3 4 7 4 1 2 . 2 1 3 3 4 6 1 3 6 6 1 2 3 4 4 3 Penetration Max 2 | . . . . . . . 1 . . . . 1 2 1 . 1 1 1 1 1 1 1 1 2 Secondary Targets 143 | . 1 4 3 8 8 1 5 . 5 . . 7 6 2 . 11 7 14 7 5 8 11 22 8 Max Gunslinging Chain 3 | . 1 1 1 2 1 1 1 . 1 . . 1 1 1 . 2 2 1 1 1 2 3 2 2 Shots Hit Robots 2692 | . 42 91 63 92 166 37 121 . 97 23 39 220 199 50 29 187 109 303 88 83 68 60 328 197 Core Hits 1148 | . 13 45 33 47 74 22 37 . 31 12 3 94 76 25 8 87 44 127 32 33 40 26 161 78 Critical Hits 319 | . . . . 3 5 . 2 . . . . 10 6 4 1 20 14 45 13 11 20 12 106 47 Critical Kills 110 | . . . . 2 2 . 2 . . . . 4 1 3 . 5 5 13 2 4 11 6 34 16 Critical Parts Destroyed 179 | . . . . 1 3 . . . . . . 3 3 1 1 13 9 29 9 5 8 6 65 23 Melee Attacks 46 | . . . . . 1 24 7 . 4 . . 7 . . . . . . . . . . . 3 Impact . | . . . . . . . . . . . . . . . . . . . . . . . . . Slashing 29 | . . . . . 1 21 1 . . . . 3 . . . . . . . . . . . 3 Piercing . | . . . . . . . . . . . . . . . . . . . . . . . . . Sneak Attacks 17 | . . . . . . 3 6 . 4 . . 4 . . . . . . . . . . . . Combat Hostiles 3 | . . . . . . 3 . . . . . . . . . . . . . . . . . . Follow-up Attacks . | . . . . . . . . . . . . . . . . . . . . . . . . . Damage Inflicted 66028 | . 368 1415 1203 1411 3276 790 2050 . 1627 514 630 5256 4547 1581 612 4682 2445 8629 2269 2205 2303 1448 11018 5749 Guns 59829 | . 368 1215 897 1269 2340 528 1670 . 1627 472 173 4497 4547 1267 612 4630 2445 8303 2269 2205 2303 1448 8995 5749 Cannons 457 | . . . . . . . . . . . 457 . . . . . . . . . . . . . Explosions 5742 | . . 200 306 142 936 262 380 . . 42 . 759 . 314 . 52 . 326 . . . . 2023 . Melee . | . . . . . . . . . . . . . . . . . . . . . . . . . Ramming . | . . . . . . . . . . . . . . . . . . . . . . . . . Kinetic 43132 | . 285 281 173 205 640 136 945 . 909 146 146 2473 2891 784 396 2664 1352 5796 2269 2205 2303 1448 8936 5749 Thermal 7816 | . . 200 306 142 936 55 148 . . 42 457 377 254 573 93 1045 469 2409 . . . . 310 . Explosive 1832 | . . . . . . . . . . . . 60 . . . . . . . . . . 1772 . Electromagnetic 13248 | . 83 934 724 1064 1700 599 957 . 718 326 27 2346 1402 224 123 973 624 424 . . . . . . Impact . | . . . . . . . . . . . . . . . . . . . . . . . . . Slashing . | . . . . . . . . . . . . . . . . . . . . . . . . . Piercing . | . . . . . . . . . . . . . . . . . . . . . . . . . Highest Corruption 2 | . 1 . . . . . . . . . . 1 1 1 1 1 1 2 1 . 1 . 2 . Average Corruption 1 | . 1 . . . . . . . . . . 1 1 1 1 1 1 1 1 . 1 . 1 . Corruption Purged 6 | . . . . . . . . . . . . . . . . . . 1 1 . . . 4 . Effects 41 | . . . . . . . . . . . . 3 4 3 1 6 5 12 3 . . . 4 . Message Errors 9 | . . . . . . . . . . . . . . 1 1 2 1 2 . . . . 2 . Energy Discharges 8 | . . . . . . . . . . . . . . 1 . 2 . 4 1 . . . . . Data Loss (minor) 7 | . . . . . . . . . . . . . 1 . . . 1 3 1 . . . 1 . Targeting Errors 15 | . . . . . . . . . . . . 2 3 1 . 2 2 3 1 . . . 1 . Weapon Failures 2 | . . . . . . . . . . . . 1 . . . . 1 . . . . . . . Overload Shots . | . . . . . . . . . . . . . . . . . . . . . . . . . Overflow Damage 477 | . . 21 1 . 211 20 3 . . . . 29 . . . . . 19 . . . . 173 . Projectiles . | . . . . . . . . . . . . . . . . . . . . . . . . . Explosions 477 | . . 21 1 . 211 20 3 . . . . 29 . . . . . 19 . . . . 173 . Melee . | . . . . . . . . . . . . . . . . . . . . . . . . . Knockbacks . | . . . . . . . . . . . . . . . . . . . . . . . . . Impact . | . . . . . . . . . . . . . . . . . . . . . . . . . Kinetic . | . . . . . . . . . . . . . . . . . . . . . . . . . Secondary . | . . . . . . . . . . . . . . . . . . . . . . . . . Self-Inflicted Damage 678 | . . 37 71 32 309 58 60 . . . . 33 . 39 . . . 39 . . . . . . Shots 19 | . . 1 3 1 7 1 3 . . . . 1 . 1 . . . 1 . . . . . . Rammed . | . . . . . . . . . . . . . . . . . . . . . . . . . Targets Rammed . | . . . . . . . . . . . . . . . . . . . . . . . . . Kicked . | . . . . . . . . . . . . . . . . . . . . . . . . . Crushed . | . . . . . . . . . . . . . . . . . . . . . . . . . Highest Temperature 561 | . 4 143 285 204 219 108 128 . 283 194 123 421 277 295 204 372 388 561 64 9 155 307 500 168 Average Temperature 107 | . 3 40 112 99 50 54 42 . 107 71 23 88 95 130 87 122 133 157 24 4 57 96 159 48 Received Heat Transfer 3711 | . 90 105 189 324 261 96 132 . 150 28 . 332 191 66 30 156 130 140 76 69 40 . 684 422 Effects 37 | . . . . . . . . . 1 . . 5 2 2 . 2 1 11 . . . . 13 . Shutdowns 3 | . . . . . . . . . . . . 2 . . . . . . . . . . 1 . Energy Bleed 11 | . . . . . . . . . 1 . . 2 . 1 . 1 . 3 . . . . 3 . Interference 13 | . . . . . . . . . . . . . 2 1 . 1 1 3 . . . . 5 . Short Circuit 4 | . . . . . . . . . . . . 1 . . . . . 1 . . . . 2 . Damage (minor) 2 | . . . . . . . . . . . . . . . . . . . . . . . 2 . Damage (major) 2 | . . . . . . . . . . . . . . . . . . 2 . . . . . . Damage (core) 2 | . . . . . . . . . . . . . . . . . . 2 . . . . . . Siege Activations . | . . . . . . . . . . . . . . . . . . . . . . . . . Robots Corrupted 3 | . . . . . 1 1 . . . . . 1 . . . . . . . . . . . . Combat Hostiles 2 | . . . . . . 1 . . . . . 1 . . . . . . . . . . . . Parts Fried 54 | . . 5 1 4 8 1 4 . 2 3 . 14 5 . . 3 1 1 . . 2 . . . Impact Corruptions . | . . . . . . . . . . . . . . . . . . . . . . . . . Robots Melted . | . . . . . . . . . . . . . . . . . . . . . . . . . Combat Hostiles . | . . . . . . . . . . . . . . . . . . . . . . . . . Parts Melted 14 | . . . . . . . . . 2 . . . 4 . . . . 7 . . . . 1 . Heat Transferred 9405 | . . 300 200 125 600 50 200 . . 50 300 250 407 757 148 1641 740 3345 . . . . 292 . Parts Sabotaged 7 | . . . . . . . . . . . . . . . . . . . . . . . 3 4 Parts Stolen . | . . . . . . . . . . . . . . . . . . . . . . . . . Parts Stripped . | . . . . . . . . . . . . . . . . . . . . . . . . . Power Chain Reactions 28 | . . 5 3 3 6 1 2 . . 1 . 5 . 1 . 1 . . . . . . . . Missiles Intercepted . | . . . . . . . . . . . . . . . . . . . . . . . . . Alert | -11 -10 -9 -8 -8 -7 -7 -7 -7 -6 -6 -6 -6 -6 -6 -6 -6 -6 -5 -5 -5 -5 -4 -4 -3 ------- Run | Scr Mat Mat Mat Gar Fac Low Low Dat Pro Fac Was Fac Ext Cet Arc Hub Gar Fac Upp Upp War Pro Fac Res Peak Influence 2760 | . 264 518 529 1316 1544 . . . . 406 153 1256 1116 1074 659 883 1243 1635 . . . . 2760 2359 Average Influence 899 | . 146 236 294 842 1013 . . . . 306 142 496 788 942 620 575 928 1199 . . . . 1648 1879 Maximum Alert Level 5 | . 1 2 2 4 4 . . . . 2 . 4 4 3 2 3 4 5 . . . . 5 5 Low Security (%) 13 | 100 76 52 31 . . . . . . 22 100 9 . . . 2 . . . . . . 4 . Level 1 11 | . 23 33 43 5 . . . . . 66 . 31 . . . 24 . . . . . . . . Level 2 15 | . . 13 24 33 3 . . . . 10 . 37 45 3 100 34 2 4 . . . . 6 . Level 3 26 | . . . . 38 70 . . . . . . 13 42 96 . 38 67 16 . . . . 17 . Level 4 21 | . . . . 22 25 . . . . . . 7 12 . . . 29 77 . . . . 13 25 Level 5 6 | . . . . . . . . . . . . . . . . . . 1 . . . . 27 44 High Security 5 | . . . . . . . . . . . . . . . . . . . . . . . 31 29 Max Security . | . . . . . . . . . . . . . . . . . . . . . . . . . Squads Dispatched 76 | . 2 4 3 . 4 . 1 . . . . 11 3 . . 11 . 6 . 1 . . 19 11 Investigation 9 | . 1 . . . . . . . . . . 2 1 . . 3 . . . . . . 2 . Extermination 8 | . . . . . 1 . . . . . . 2 . . . . . 2 . . . . 2 1 Reinforcement 29 | . 1 4 2 . 3 . . . . . . 5 1 . . 6 . 2 . . . . 4 1 Assault 23 | . . . . . . . 1 . . . . 1 1 . . . . 1 . 1 . . 11 7 Garrison 7 | . . . 1 . . . . . . . . 1 . . . 2 . 1 . . . . . 2 Intercept . | . . . . . . . . . . . . . . . . . . . . . . . . . Construction Impeded 10 | . . 1 1 . 1 . . . . . . . . . . 2 . 1 . . . . 3 1 Haulers Reinforced 6 | . . . . . 2 . . . . . . 2 . . . 1 . 1 . . . . . . Stealth | -11 -10 -9 -8 -8 -7 -7 -7 -7 -6 -6 -6 -6 -6 -6 -6 -6 -6 -5 -5 -5 -5 -4 -4 -3 --------- Run | Scr Mat Mat Mat Gar Fac Low Low Dat Pro Fac Was Fac Ext Cet Arc Hub Gar Fac Upp Upp War Pro Fac Res Distress Signals 27 | . 1 5 1 . 1 . . . . . . 1 1 2 . 4 . 4 . . . . 4 3 Communications Jammed . | . . . . . . . . . . . . . . . . . . . . . . . . . Distress Signals . | . . . . . . . . . . . . . . . . . . . . . . . . . Times Spotted 741 | . 17 27 18 31 34 13 24 . 22 8 6 46 45 12 4 41 23 63 17 16 54 18 123 79 Peak Tracking Total 26 | . 4 6 8 7 4 7 6 . 9 3 6 6 9 5 2 5 4 6 7 8 23 5 26 20 Tactical Retreats 47 | . 2 . 3 . 1 2 1 . . . . 1 3 . . 1 2 7 1 2 4 . 10 7 Traps | -11 -10 -9 -8 -8 -7 -7 -7 -7 -6 -6 -6 -6 -6 -6 -6 -6 -6 -5 -5 -5 -5 -4 -4 -3 ------- Run | Scr Mat Mat Mat Gar Fac Low Low Dat Pro Fac Was Fac Ext Cet Arc Hub Gar Fac Upp Upp War Pro Fac Res Traps Triggered 23 | . 1 . . 10 . . . . . 1 . 1 1 . . 1 2 2 . . . . 2 2 Indirectly . | . . . . . . . . . . . . . . . . . . . . . . . . . Trap Hack Attempts 13 | . . . . . 13 . . . . . . . . . . . . . . . . . . . Triggered . | . . . . . . . . . . . . . . . . . . . . . . . . . Disarmed . | . . . . . . . . . . . . . . . . . . . . . . . . . Reprogrammed 6 | . 1 . . . 1 . . . . . . . 4 . . . . . . . . . . . Reused 1 | . . . . . . . . . . . . . 1 . . . . . . . . . . . Traps Extracted . | . . . . . . . . . . . . . . . . . . . . . . . . . Installed . | . . . . . . . . . . . . . . . . . . . . . . . . . Triggered 8 | . . . . . 1 . . . . . . . 1 . . . . . . . 6 . . . Machines | -11 -10 -9 -8 -8 -7 -7 -7 -7 -6 -6 -6 -6 -6 -6 -6 -6 -6 -5 -5 -5 -5 -4 -4 -3 ---------- Run | Scr Mat Mat Mat Gar Fac Low Low Dat Pro Fac Was Fac Ext Cet Arc Hub Gar Fac Upp Upp War Pro Fac Res Machines Disabled 96 | . . 5 . 3 19 1 2 . . . . 5 6 . 2 10 2 10 1 1 . . 29 . Max in Single Turn 20 | . . 1 . 1 10 1 1 . . . . 1 3 . 1 2 1 3 1 1 . . 20 . Garrison Relay 4 | . . . . 3 . . . . . . . . . . . . 1 . . . . . . . Machines Sabotaged . | . . . . . . . . . . . . . . . . . . . . . . . . . Garrisons Compromised . | . . . . . . . . . . . . . . . . . . . . . . . . . Overloaded Fab Kills . | . . . . . . . . . . . . . . . . . . . . . . . . . Fab Network Shutdowns 3 | . . . . . . . . . . . . 1 . . . . . . . . . . 1 1 Hacking | -11 -10 -9 -8 -8 -7 -7 -7 -7 -6 -6 -6 -6 -6 -6 -6 -6 -6 -5 -5 -5 -5 -4 -4 -3 --------- Run | Scr Mat Mat Mat Gar Fac Low Low Dat Pro Fac Was Fac Ext Cet Arc Hub Gar Fac Upp Upp War Pro Fac Res Machines Accessed 97 | . 8 1 2 . 11 2 . 4 . 5 . 12 11 3 1 9 . 4 . . 13 . 6 5 Terminals 55 | . 6 1 1 . 6 1 . . . 4 . 6 11 3 . 8 . 3 . . . . 2 3 Fabricators 10 | . . . . . 4 . . . . . . 3 . . . . . 1 . . . . 1 1 Repair Stations 5 | . . . . . 1 . . . . . . 1 . . . . . . . . . . 2 1 Recycling Units 4 | . 2 . . . . . . . . . . 1 . . . . . . . . . . 1 . Scanalyzers 2 | . . . . . . . . . . 1 . 1 . . . . . . . . . . . . Garrison Access 2 | . . . 1 . . . . . . . . . . . . 1 . . . . . . . . Total Hacks 299 | . 32 3 6 . 29 3 . 24 . 21 . 43 24 13 4 30 . 15 . . 22 . 18 12 Successful 199 | . 22 2 2 . 16 3 . 24 . 11 . 29 16 5 4 18 . 10 . . 22 . 10 5 Failed 97 | . 9 1 4 . 13 . . . . 10 . 13 8 8 . 11 . 5 . . . . 8 7 Catastrophic 12 | . 1 . . . 1 . . . . 2 . . . 1 . 3 . 1 . . . . 2 1 Database Lockouts 4 | . 1 . . . . . . . . . . 2 . . . 1 . . . . . . . . Manual 69 | . 1 . . . . . . . . 6 . 10 7 6 2 9 . 11 . . 1 . 10 6 Terminals 187 | . 27 3 4 . 16 2 . . . 17 . 24 24 13 . 29 . 12 . . . . 8 8 Fabricators 29 | . . . . . 11 . . . . . . 8 . . . . . 3 . . . . 4 3 Repair Stations 11 | . . . . . 2 . . . . . . 3 . . . . . . . . . . 5 1 Recycling Units 10 | . 5 . . . . . . . . . . 4 . . . . . . . . . . 1 . Scanalyzers 8 | . . . . . . . . . . 4 . 4 . . . . . . . . . . . . Garrison Access 3 | . . . 2 . . . . . . . . . . . . 1 . . . . . . . . Terminal Hacks 140 | . 18 2 1 . 9 3 . 24 . 7 . 10 9 5 4 17 . 6 . . 22 . 1 2 Record 68 | . 6 . . . 4 2 . 11 . 4 . 6 1 4 4 4 . 2 . . 20 . . . Part Schematic 8 | . . . . . 1 . . 5 . . . . . . . 1 . . . . . . 1 . Robot Schematic 6 | . . . . . 1 . . 5 . . . . . . . . . . . . . . . . Robot Analysis 4 | . . . . . . . . . . . . 1 1 . . 2 . . . . . . . . Prototype ID Bank 8 | . 1 1 1 . . . . 3 . 1 . . . . . 1 . . . . . . . . Open Door 4 | . . . . . . 1 . . . . . . . 1 . . . . . . 2 . . . Branch Access Points 4 | . 1 . . . 1 . . . . . . 1 1 . . . . . . . . . . . Emergency Access Points 2 | . 2 . . . . . . . . . . . . . . . . . . . . . . . Alert Level 4 | . 1 . . . . . . . . . . 1 . . . 2 . . . . . . . . Unreport Threat 11 | . . 1 . . 1 . . . . . . 1 1 . . 3 . 3 . . . . . 1 Locate Traps 8 | . 2 . . . 1 . . . . 1 . . 2 . . 2 . . . . . . . . Reprogram Traps 2 | . 1 . . . . . . . . . . . 1 . . . . . . . . . . . Maintenance Status 1 | . 1 . . . . . . . . . . . . . . . . . . . . . . . Surveillance Status 1 | . . . . . . . . . . 1 . . . . . . . . . . . . . . Transport Status 1 | . 1 . . . . . . . . . . . . . . . . . . . . . . . Investigation Status 2 | . . . . . . . . . . . . . . . . 1 . . . . . . . 1 Extermination Status 2 | . . . . . . . . . . . . . 1 . . 1 . . . . . . . . Recall Reinforcements 1 | . 1 . . . . . . . . . . . . . . . . . . . . . . . Registered Components 2 | . 1 . . . . . . . . . . . . . . . . 1 . . . . . . Zone Layout 1 | . . . . . . . . . . . . . 1 . . . . . . . . . . . Fabricator Hacks 17 | . . . . . 5 . . . . . . 5 . . . . . 2 . . . . 3 2 Network Status 3 | . . . . . 1 . . . . . . 1 . . . . . . . . . . 1 . Load Schematic 8 | . . . . . 3 . . . . . . 2 . . . . . 1 . . . . 1 1 Build 6 | . . . . . 1 . . . . . . 2 . . . . . 1 . . . . 1 1 Repair Station Hacks 6 | . . . . . 2 . . . . . . 2 . . . . . . . . . . 2 . Scan Component 3 | . . . . . 1 . . . . . . 1 . . . . . . . . . . 1 . Repair 3 | . . . . . 1 . . . . . . 1 . . . . . . . . . . 1 . Recycling Unit Hacks 7 | . 4 . . . . . . . . . . 3 . . . . . . . . . . . . Process 1 | . . . . . . . . . . . . 1 . . . . . . . . . . . . Report Inventory 2 | . 1 . . . . . . . . . . 1 . . . . . . . . . . . . Retrieve Matter 2 | . 1 . . . . . . . . . . 1 . . . . . . . . . . . . Retrieve Components 2 | . 2 . . . . . . . . . . . . . . . . . . . . . . . Scanalyzer 6 | . . . . . . . . . . 2 . 4 . . . . . . . . . . . . Insert Component 3 | . . . . . . . . . . 1 . 2 . . . . . . . . . . . . Analyze 3 | . . . . . . . . . . 1 . 2 . . . . . . . . . . . . Garrison Access Hacks 2 | . . . 1 . . . . . . . . . . . . 1 . . . . . . . . Unlock Access 2 | . . . 1 . . . . . . . . . . . . 1 . . . . . . . . Unauthorized Hacks 49 | . . . . . . . . . . 6 . 12 14 . . . . 4 . . . . 11 2 Terminals 16 | . . . . . . . . . . 2 . 3 7 . . . . 2 . . . . 2 . Assimilate 1 | . . . . . . . . . . 1 . . . . . . . . . . . . . . Botnet 15 | . . . . . . . . . . 1 . 3 7 . . . . 2 . . . . 2 . Fabricators 2 | . . . . . . . . . . . . 1 . . . . . . . . . . 1 . Report 2 | . . . . . . . . . . . . 1 . . . . . . . . . . 1 . Repair Stations 2 | . . . . . . . . . . . . . . . . . . . . . . . 1 1 Mechanics 2 | . . . . . . . . . . . . . . . . . . . . . . . 1 1 Recycling Units 1 | . . . . . . . . . . . . 1 . . . . . . . . . . . . Monitor 1 | . . . . . . . . . . . . 1 . . . . . . . . . . . . Scanalyzers . | . . . . . . . . . . . . . . . . . . . . . . . . . Garrison Access . | . . . . . . . . . . . . . . . . . . . . . . . . . Data Cores Recovered 3 | . . . . . . . . . . . . 2 . . . . . . . . . . 1 . Used 1 | . . . . . . . . . . . . . . . . . . . . . . . 1 . Hacking Detections 63 | . 6 1 1 . 10 . . . . 5 . 8 6 4 . 8 . 5 . . . . 5 4 Full Trace Events 5 | . 1 . . . . . . . . . . 1 . . . 1 . . . . . . 2 . Feedback Events 1 | . . . . . . . . . . . . . . . . . . . . . . . 1 . Corruption 1 | . . . . . . . . . . . . . . . . . . . . . . . 1 . Feedback Blocked . | . . . . . . . . . . . . . . . . . . . . . . . . . Robot Schematics Acquired 6 | . . . . . 1 . . 5 . . . . . . . . . . . . . . . . Robots Built 3 | . . . . . 3 . . . . . . . . . . . . . . . . . . . Matter 252 | . . . . . 252 . . . . . . . . . . . . . . . . . . . Time 67 | . . . . . 67 . . . . . . . . . . . . . . . . . . . Total Robot Build Rating 12 | . . . . . 12 . . . . . . . . . . . . . . . . . . . Part Schematics Acquired 11 | . . . . . 1 . . 5 . 1 . 2 . . . 1 . . . . . . 1 . Parts Built 3 | . . . . . . . . . . . . 1 . . . . . 1 . . . . . 1 Matter 1425 | . . . . . . . . . . . . 570 . . . . . 285 . . . . 285 285 Time 608 | . . . . . . . . . . . . 228 . . . . . 76 . . . . 152 152 Total Part Build Rating 15 | . . . . . . . . . . . . 5 . . . . . 5 . . . . . 5 Parts Repaired 3 | . . . . . 1 . . . . . . 1 . . . . . . . . . . 1 . Time 109 | . . . . . 51 . . . . . . 23 . . . . . . . . . . 35 . Parts Recycled . | . . . . . . . . . . . . . . . . . . . . . . . . . Recycled Matter 338 | . . . . . . . . . . . . 338 . . . . . . . . . . . . Retrieved Matter 388 | . . . . . . . . . . . . 388 . . . . . . . . . . . . Retrieved Components 11 | . 11 . . . . . . . . . . . . . . . . . . . . . . . Parts Scanalyzed 3 | . . . . . . . . . . 1 . 2 . . . . . . . . . . . . Part Schematics Acquired 3 | . . . . . . . . . . 1 . 2 . . . . . . . . . . . . Parts Damaged . | . . . . . . . . . . . . . . . . . . . . . . . . . Bothacking | -11 -10 -9 -8 -8 -7 -7 -7 -7 -6 -6 -6 -6 -6 -6 -6 -6 -6 -5 -5 -5 -5 -4 -4 -3 ------------ Run | Scr Mat Mat Mat Gar Fac Low Low Dat Pro Fac Was Fac Ext Cet Arc Hub Gar Fac Upp Upp War Pro Fac Res Used RIF Installer . | . . . . . . . . . . . . . . . . . . . . . . . . . Robots Hacked 3 | . . . . . . . . . 1 . . 1 . . 1 . . . . . . . . . Non-combat 3 | . . . . . . . . . 1 . . 1 . . 1 . . . . . . . . . Combat . | . . . . . . . . . . . . . . . . . . . . . . . . . Robot Hacks Applied 8 | . . . . . . . . . 2 . . 4 . . 2 . . . . . . . . . parse_system 3 | . . . . . . . . . 1 . . 1 . . 1 . . . . . . . . . no_distress 3 | . . . . . . . . . 1 . . 1 . . 1 . . . . . . . . . check_alert 2 | . . . . . . . . . . . . 2 . . . . . . . . . . . . Relay Couplers Released 8 | . . . . 4 . . . . . . . 2 . . . 1 1 . . . . . . . Machine Destruction 5 | . . . . 4 . . . . . . . . . . . . 1 . . . . . . . Programmers 3 | . . . . . . . . . . . . 2 . . . 1 . . . . . . . . Robots Rewired 10 | . . . . . . . 3 . 2 . . . 3 . . . . . 2 . . . . . Allies Hacked 2 | . . . . . . . . . . . . . . . . . . . . . . . 2 . Hacks Repelled . | . . . . . . . . . . . . . . . . . . . . . . . . . Allies | -11 -10 -9 -8 -8 -7 -7 -7 -7 -6 -6 -6 -6 -6 -6 -6 -6 -6 -5 -5 -5 -5 -4 -4 -3 -------- Run | Scr Mat Mat Mat Gar Fac Low Low Dat Pro Fac Was Fac Ext Cet Arc Hub Gar Fac Upp Upp War Pro Fac Res Total Allies 36 | . . . . . 3 . 3 . 3 1 . . 16 5 . . . . 2 . . . 3 . Largest Group 12 | . . . . . 3 . 3 3 5 2 1 . 12 11 9 6 . . 2 . . . 3 . Highest-Rated Group 756 | . . . . . 60 . 93 93 217 58 32 . 434 756 628 365 . . 60 . . . 138 . Highest-Rated Ally 156 | . . . . . 20 . 31 31 94 32 32 . 156 156 149 94 . . 30 . . . 46 . Total Orders 11 | . . . . . 1 . 4 2 . 1 . . . 3 . . . . . . . . . . STAY 6 | . . . . . . . 3 1 . 1 . . . 1 . . . . . . . . . . ROAM 1 | . . . . . 1 . . . . . . . . . . . . . . . . . . . FOLLOW 4 | . . . . . . . 1 1 . . . . . 2 . . . . . . . . . . Ally Attacks 237 | . . . . . 21 . . . 45 . 8 . 42 60 17 20 . . . . . . 24 . Total Damage 5116 | . . . . . 355 . . . 1026 . 453 . 1102 1207 398 104 . . . . . . 471 . Kills 28 | . . . . . 2 . . . 6 . . . 3 10 5 . . . . . . . 2 . Allies Corrupted 1 | . . . . . . . . . . . . . . . . . . . . . . . 1 . Allies Melted 1 | . . . . . 1 . . . . . . . . . . . . . . . . . . . Intel | -11 -10 -9 -8 -8 -7 -7 -7 -7 -6 -6 -6 -6 -6 -6 -6 -6 -6 -5 -5 -5 -5 -4 -4 -3 ------- Run | Scr Mat Mat Mat Gar Fac Low Low Dat Pro Fac Was Fac Ext Cet Arc Hub Gar Fac Upp Upp War Pro Fac Res Robot Analysis Total 4 | . . . . . . . . . . . . 1 1 . . 2 . . . . . . . . Derelict Logs Recovered 10 | . . . . . . 1 3 . 2 . . . . . . . . . 2 1 . 1 . . Drone Launches . | . . . . . . . . . . . . . . . . . . . . . . . . . Drone Recoveries . | . . . . . . . . . . . . . . . . . . . . . . . . . Exploration | -11 -10 -9 -8 -8 -7 -7 -7 -7 -6 -6 -6 -6 -6 -6 -6 -6 -6 -5 -5 -5 -5 -4 -4 -3 ------------- Run | Scr Mat Mat Mat Gar Fac Low Low Dat Pro Fac Was Fac Ext Cet Arc Hub Gar Fac Upp Upp War Pro Fac Res Turns Passed 12704 | 47 582 594 244 581 859 586 682 40 847 221 117 765 593 365 119 550 307 1292 414 387 397 516 944 655 Spaces Moved 17880 | 43 447 476 180 610 878 1155 1044 82 1335 345 97 1093 900 473 186 846 337 1464 1182 1074 1024 1119 856 634 Core 5 | 5 . . . . . . . . . . . . . . . . . . . . . . . . Treads . | . . . . . . . . . . . . . . . . . . . . . . . . . Legs 1 | . . . . . . . . . . 1 . . . . . . . . . . . . . . Wheels 650 | 38 447 165 . . . . . . . . . . . . . . . . . . . . . . Hover 355 | . . 311 44 . . . . . . . . . . . . . . . . . . . . . Flight 16869 | . . . 136 610 878 1155 1044 82 1335 344 97 1093 900 473 186 846 337 1464 1182 1074 1024 1119 856 634 Fastest Speed 23 | 50 100 56 34 34 30 30 28 40 40 40 40 24 23 23 23 23 23 23 23 23 23 23 24 26 Average Speed 31 | 94 100 69 39 34 33 33 39 40 40 40 40 28 23 23 23 23 23 23 23 23 23 23 25 26 Slowest Speed 150 | 100 100 120 56 34 114 40 40 40 40 150 40 40 24 23 23 23 23 101 23 23 23 24 28 26 Overloaded Moves . | . . . . . . . . . . . . . . . . . . . . . . . . . Propulsion Burnouts . | . . . . . . . . . . . . . . . . . . . . . . . . . Robots Hopped 71 | . . . 1 . 1 . 1 . . . . 15 7 . . 6 . 17 . 3 6 . 4 10 Cave-ins Triggered 1 | . . . . . . 1 . . . . . . . . . . . . . . . . . . Exploration Rate (%) 66 | 3 75 54 25 86 33 86 97 65 98 11 70 41 95 92 99 86 57 39 98 99 93 97 26 31 Regions Visited 24 Branch Regions 12 Pre-discovered Areas 4 | . . . . . . . . 1 1 . . . . . . . . . 2 . . . . . Known Exits Taken 18 | . . 1 1 . 1 1 1 1 1 . . 1 1 1 1 1 . 1 1 1 1 1 1 . Unknown Exits Taken 2 | 1 1 . . . . . . . . . . . . . . . . . . . . . . . Scrap Searched 22 | . . . . . . 3 4 . 5 . . . . . . . . . 5 2 . 3 . . Spaces Dug 24 | . . . . . 1 14 . . . . . 4 . . . 1 . 1 . . . . . 3 Terrain Destroyed 827 | . . 26 18 10 52 26 15 . 6 . 1 63 17 14 5 68 15 75 46 84 28 68 183 7 Melee 21 | . . . . . 1 14 . . . . . 3 . . . . . . . . . . . 3 Projectile 525 | . . . . . . . 10 . 6 . 1 8 17 8 5 64 15 62 46 84 28 68 99 4 AOE 281 | . . 26 18 10 51 12 5 . . . . 52 . 6 . 4 . 13 . . . . 84 . Actions | -11 -10 -9 -8 -8 -7 -7 -7 -7 -6 -6 -6 -6 -6 -6 -6 -6 -6 -5 -5 -5 -5 -4 -4 -3 --------- Run | Scr Mat Mat Mat Gar Fac Low Low Dat Pro Fac Was Fac Ext Cet Arc Hub Gar Fac Upp Upp War Pro Fac Res Total 22470 | 47 536 647 289 865 1309 1282 1204 88 1558 401 128 1341 1113 687 240 1035 450 2190 1270 1140 1123 1313 1271 943 Wait 2215 | . 35 88 43 72 286 47 39 7 115 17 . 96 82 151 35 59 20 494 38 42 26 151 109 163 Move 17720 | 42 446 475 178 608 875 1153 1041 81 1334 345 96 1063 885 472 185 833 336 1430 1181 1067 1015 1118 847 614 Hop 65 | . . . 1 . 1 . 1 . . . . 14 7 . . 6 . 16 . 3 2 . 4 10 Pick Up 32 | 1 4 2 . 1 3 . . . 2 . 1 4 1 . . 1 . 5 . . 2 . 2 3 Fast Attach 148 | 4 4 11 7 3 16 7 4 . 1 5 1 8 4 7 . 13 . 15 1 . 9 2 18 8 Attach 7 | . . . . . . . . . . 1 . 2 . . . . . . . . . . 4 . Detach 11 | . . . . . . . . . . 1 1 1 . 1 . 1 . . . . 2 1 3 . Swap 80 | . 2 . . 1 10 9 9 . 4 . . 6 2 . 2 4 8 10 3 . . . 7 3 Drop 138 | . 6 8 6 3 16 4 4 . 1 6 1 9 5 6 . 14 . 17 1 . 11 2 11 7 Fire 1008 | . 25 40 28 53 59 23 40 . 34 11 28 76 63 15 9 58 48 104 30 28 23 24 121 68 Melee 46 | . . . . . 1 24 7 . 4 . . 7 . . . . . . . . . . . 3 Ram . | . . . . . . . . . . . . . . . . . . . . . . . . . Kick . | . . . . . . . . . . . . . . . . . . . . . . . . . Crush . | . . . . . . . . . . . . . . . . . . . . . . . . . Escape Stasis 110 | . . . . 89 . 1 . . . . . . 7 . . 1 12 . . . . . . . Rewire 1 | . . . . . . . . . . . . . . . . . . . . . . . 1 . Trap 13 | . . . . . 13 . . . . . . . . . . . . . . . . . . . Miscellaneous 876 | . 14 23 26 35 29 14 59 . 63 15 . 55 57 35 9 45 26 99 16 . 33 15 144 64 Route ------- -11/Scrapyard -10/Materials (discovered 2 exits: *Mat / *Min) -9/Materials (discovered 2 exits: *Mat / [*Min]) -8/Materials -8/Garrison (discovered 3 exits: *Fac x3) -7/Factory (discovered 4 exits: Fac / Sto / *Low x2) -7/Lower Caves -7/Lower Caves (discovered 2 exits: *Fac / *Dat) -7/Data Miner -6/Proximity Caves -6/Factory (discovered 3 exits: *Fac x2 / Low) -6/Waste -6/Factory (discovered 4 exits: *Low x2 / *Ext x2) -6/Extension (discovered 3 exits: *Fac x2 / *Cet) -6/Cetus (discovered 3 exits: *Fac x2 / *Arc) -6/Archives (discovered 3 exits: *Fac / *Hub x2) -6/Hub_04(d) (discovered 5 exits: *Fac x4 / Gar) -6/Garrison (discovered 2 exits: *Fac x2) -5/Factory (discovered 3 exits: *Fac x2 / *Upp) -5/Upper Caves -5/Upper Caves (discovered 2 exits: *Fac / *War) -5/Warlord -4/Proximity Caves -4/Factory (discovered 2 exits: *Res x2) -3/Research History --------- Turn | Location | Event 7 | -11/Scrapyard | Upgraded with Weapon slot (x1) 8 | -11/Scrapyard | Discovered new exit (range 16) 48 | -11/Scrapyard | Entered Materials 107 | -10/Materials | Upgraded with Weapon slot (x1) 163 | -10/Materials | Discovered new exit (range 16) 398 | -10/Materials | Central database locked down 411 | -10/Materials | Build established: Gunner 580 | -10/Materials | Identified exit to Mines 603 | -10/Materials | Discovered new exit (range 4) 630 | -10/Materials | Entered another Materials area 632 | -9/Materials | Reached level 2 727 | -9/Materials | Upgraded with Utility slot (x1) 839 | -9/Materials | Upgraded with Propulsion slot (x1) 874 | -9/Materials | Reached level 3 879 | -9/Materials | Discovered new exit (range 8) 928 | -9/Materials | Upgraded with Utility slot (x1) 1077 | -9/Materials | Reached level 4 1132 | -9/Materials | Upgraded with Utility slot (x1) 1210 | -9/Materials | Discovered new exit (range 17) 1224 | -9/Materials | Identified exit to Materials 1224 | -9/Materials | Entered another Materials area 1226 | -8/Materials | Reached level 5 1260 | -8/Materials | Upgraded with Propulsion slot (x1) 1369 | -8/Materials | Garrison activated, responded to threat 1402 | -8/Materials | Reached level 6 1458 | -8/Materials | Destroyed 7 combat bots 1468 | -8/Materials | Identified exit to Garrison 1468 | -8/Materials | Entered Garrison 1478 | -8/Garrison | Triggered checkpoint 1505 | -8/Garrison | Garrison Relay disabled 1505 | -8/Garrison | Reached level 7 1508 | -8/Garrison | Upgraded with Utility slot (x1) 1549 | -8/Garrison | Build established: Scout 1604 | -8/Garrison | Triggered checkpoint 1610 | -8/Garrison | Triggered checkpoint 1686 | -8/Garrison | Triggered checkpoint 1708 | -8/Garrison | Reached level 8 1729 | -8/Garrison | Destroyed 8 combat bots 1754 | -8/Garrison | Discovered new exit (range 8) 1766 | -8/Garrison | Triggered checkpoint 1784 | -8/Garrison | Core integrity fell below 50% 1820 | -8/Garrison | Garrison Relay disabled 1855 | -8/Garrison | Triggered checkpoint 1894 | -8/Garrison | Discovered new exit (range 11) 1896 | -8/Garrison | Build established: Scavenger-Scout 1897 | -8/Garrison | Identified exit to Factory 1906 | -8/Garrison | Triggered checkpoint 1956 | -8/Garrison | Discovered exit to Factory (range 18) 1962 | -8/Garrison | Triggered checkpoint 1977 | -8/Garrison | Reached level 9 1988 | -8/Garrison | Garrison Relay disabled 2012 | -8/Garrison | Attempted to access garrison exit controls, blocked by remote lockdown 2049 | -8/Garrison | Entered Factory 2051 | -7/Factory | Reached level 10 2061 | -7/Factory | Identified exit to Storage 2061 | -7/Factory | Identified exit to Lower Caves 2079 | -7/Factory | Upgraded with Utility slot (x1) 2150 | -7/Factory | Core integrity fell below 50% 2251 | -7/Factory | Reached level 11 2264 | -7/Factory | Upgraded with Weapon slot (x1) 2275 | -7/Factory | Destroyed 7 combat bots 2329 | -7/Factory | Repaired Imp. EM Shotgun 2477 | -7/Factory | Fabricated B-48 Gladiator (x3) 2547 | -7/Factory | Reached level 12 2577 | -7/Factory | Upgraded with Utility slot (x1) 2703 | -7/Factory | Reached level 13 2807 | -7/Factory | Discovered new exit (range 10) 2831 | -7/Factory | Reached level 14 2908 | -7/Factory | Entered Lower Caves 2914 | -7/Lower Caves | Encountered a Warlord checkpoint 3003 | -7/Lower Caves | Learned location of 1 exit from Factory 3048 | -7/Lower Caves | Spotted B-75 Beast 3089 | -7/Lower Caves | Crushed by falling debris 3115 | -7/Lower Caves | Learned Factory trap positions 3122 | -7/Lower Caves | Attracted the attention of an 0b10 base 3200 | -7/Lower Caves | Build established: Scavenger-Sprinter 3236 | -7/Lower Caves | Found Alien Artifact 3236 | -7/Lower Caves | Identified Core Expander 3236 | -7/Lower Caves | Installed Core Expander, added new Propulsion slot 3336 | -7/Lower Caves | Destroyed B-75 Beast 3437 | -7/Lower Caves | Discovered new exit (range 14) 3444 | -7/Lower Caves | Identified exit to Lower Caves 3494 | -7/Lower Caves | Entered another Lower Caves area 3496 | -7/Lower Caves | Reached level 15 3518 | -7/Lower Caves | Discovered new exit (range 8) 3521 | -7/Lower Caves | Identified exit to Factory 3648 | -7/Lower Caves | Learned Factory stockpile data 3665 | -7/Lower Caves | Attracted the attention of an 0b10 outpost 3703 | -7/Lower Caves | Discovered new exit (range 15) 3709 | -7/Lower Caves | Identified exit to Data Miner 3849 | -7/Lower Caves | Attacked by a delusional Derelict stockpiling Unaware 3870 | -7/Lower Caves | Upgraded with Power slot (x1) 4060 | -7/Lower Caves | Reached level 16 4076 | -7/Lower Caves | Build established: Scavenger-Gunner 4176 | -7/Lower Caves | Entered Data Miner 4176 | -7/Data Miner | Accompanied by 3 allies 4176 | -7/Data Miner | Discovered new exit (range 6) 4178 | -7/Data Miner | Identified exit to Proximity Caves 4184 | -7/Data Miner | Met Data Miner 4193 | -7/Data Miner | Learned location of Section 7 (-2) 4193 | -7/Data Miner | Acquired the access code to Warlord's prototype stash 4199 | -7/Data Miner | Received God Mode back door access code from Data Miner 4216 | -7/Data Miner | Entered Proximity Caves 4216 | -6/Proximity Caves | Accompanied by 3 allies 4224 | -6/Proximity Caves | Reached level 17 4346 | -6/Proximity Caves | Escorted by Enhanced Grunt 4359 | -6/Proximity Caves | Attracted the attention of an 0b10 outpost 4459 | -6/Proximity Caves | Learned location of Zion (-6) 4466 | -6/Proximity Caves | Attracted the attention of an 0b10 checkpoint 4482 | -6/Proximity Caves | Reached level 18 4852 | -6/Proximity Caves | Discovered exit to Factory (range 9) 4873 | -6/Proximity Caves | Spotted B-75 Beast 4897 | -6/Proximity Caves | Destroyed B-75 Beast 4901 | -6/Proximity Caves | Upgraded with Utility slot (x1) 5063 | -6/Proximity Caves | Entered Factory 5063 | -6/Factory | Accompanied by 1 ally 5064 | -6/Factory | Identified exit to Lower Caves 5065 | -6/Factory | Identified exit to Factory 5066 | -6/Factory | Loaded intel: 100 trap records 5116 | -6/Factory | Reached level 19 5257 | -6/Factory | Discovered exit to Factory (range 3) 5284 | -6/Factory | Sucked down chute 5284 | -6/Factory | Entered Waste 5287 | -6/Waste | Spotted C-40 Crusher 5303 | -6/Waste | Spotted C-40 Crusher 5303 | -6/Waste | Spotted C-40 Crusher 5315 | -6/Waste | 1 allies followed down the chute 5343 | -6/Waste | Spotted C-40 Crusher 5364 | -6/Waste | Spotted C-40 Crusher 5373 | -6/Waste | Spotted C-40 Crusher 5375 | -6/Waste | Discovered new exit (range 17) 5391 | -6/Waste | Identified exit to Factory 5401 | -6/Waste | Entered Factory 5551 | -6/Factory | Discovered exit to Lower Caves (range 18) 5633 | -6/Factory | Garrison activated, responded to threat 5751 | -6/Factory | Repaired Broken Nuclear Pulse Thruster 5751 | -6/Factory | First assault squad dispatched 5757 | -6/Factory | Incoming investigation squad redirected 5776 | -6/Factory | Incoming assault squad redirected 5810 | -6/Factory | Build established: Hacker-Sprinter 5867 | -6/Factory | Destroyed 8 combat bots 5894 | -6/Factory | Upgraded with Propulsion slot (x1) 5943 | -6/Factory | Spotted B-75 Beast 5952 | -6/Factory | Reached level 20 5987 | -6/Factory | Destroyed B-75 Beast 6077 | -6/Factory | Fabricated Cld. Cesium-ion Thruster (x1) 6097 | -6/Factory | Upgraded with Weapon slot (x1) 6109 | -6/Factory | Local fabrication network quarantined 6160 | -6/Factory | Discovered new exit (range 14) 6165 | -6/Factory | Identified exit to Extension 6165 | -6/Factory | Central database locked down 6166 | -6/Factory | Entered Extension 6185 | -6/Extension | Spotted B-75 Beast 6201 | -6/Extension | Spotted B-75 Beast 6216 | -6/Extension | Discovered exit to Factory (range 16) 6229 | -6/Extension | Destroyed B-75 Beast 6299 | -6/Extension | Rescued a captive Derelict 6299 | -6/Extension | Rescued a captive Derelict 6308 | -6/Extension | Rescued a captive Derelict 6314 | -6/Extension | Rescued a captive Derelict 6315 | -6/Extension | Rescued a captive Derelict 6330 | -6/Extension | Identified exit to Cetus 6349 | -6/Extension | Incoming investigation squad redirected 6380 | -6/Extension | Rescued a captive Derelict 6381 | -6/Extension | Rescued a captive Derelict 6430 | -6/Extension | Rescued a captive Derelict 6516 | -6/Extension | First assault squad dispatched 6543 | -6/Extension | Incoming assault squad redirected 6560 | -6/Extension | Rescued a captive Derelict 6561 | -6/Extension | Incoming assault squad redirected 6561 | -6/Extension | Rescued a captive Derelict 6566 | -6/Extension | Rescued a captive Derelict 6567 | -6/Extension | Rescued a captive Derelict 6595 | -6/Extension | Rescued a captive Derelict 6597 | -6/Extension | Rescued A7 6612 | -6/Extension | Disrupted transfer network 6627 | -6/Extension | Discovered exit to Factory (range 10) 6659 | -6/Extension | Destroyed 10 combat bots 6683 | -6/Extension | Reached level 21 6759 | -6/Extension | Entered Cetus 6759 | -6/Cetus | Accompanied by 10 allies 6763 | -6/Cetus | Spotted Cetus Guard 6763 | -6/Cetus | Spotted Cetus Guard 6764 | -6/Cetus | Acquired a Cetus Manufacturing Module code from A7 6764 | -6/Cetus | Spotted Cetus Guard 6769 | -6/Cetus | Destroyed Cetus Guard 6771 | -6/Cetus | Spotted Cetus Guard 6773 | -6/Cetus | Destroyed Cetus Guard 6778 | -6/Cetus | Allies destroyed Cetus Guard 6784 | -6/Cetus | Allies destroyed Cetus Guard 6809 | -6/Cetus | Started Cetus Manufacturing Module 6834 | -6/Cetus | Manufactured an Enhanced Grunt 6842 | -6/Cetus | Discovered new exit (range 17) 6859 | -6/Cetus | Manufactured an Enhanced Grunt 6866 | -6/Cetus | Spotted Cetus Guard 6866 | -6/Cetus | Spotted Cetus Guard 6866 | -6/Cetus | Spotted Cetus Guard 6866 | -6/Cetus | Spotted Cetus Guard 6867 | -6/Cetus | Discovered exit to Factory (range 17) 6871 | -6/Cetus | Destroyed Cetus Guard 6875 | -6/Cetus | Destroyed Cetus Guard 6880 | -6/Cetus | Allies destroyed Cetus Guard 6884 | -6/Cetus | Manufactured an Enhanced Grunt 6885 | -6/Cetus | Allies destroyed Cetus Guard 6891 | -6/Cetus | Met Revision 17 6909 | -6/Cetus | Manufactured an Enhanced Grunt 6934 | -6/Cetus | Manufactured an Enhanced Grunt 6952 | -6/Cetus | Discovered exit to Factory (range 17) 6982 | -6/Cetus | Identified exit to Archives 7124 | -6/Cetus | Entered Archives 7124 | -6/Archives | Accompanied by 9 allies 7159 | -6/Archives | Unable to access archive contents 7160 | -6/Archives | Discovered new exit (range 17) 7162 | -6/Archives | Unable to access archive contents 7162 | -6/Archives | Discovered new exit (range 17) 7165 | -6/Archives | Unable to access archive contents 7172 | -6/Archives | Discovered exit to Factory (range 17) 7193 | -6/Archives | Identified exit to Hub_04(d) 7230 | -6/Archives | Build established: Scavenger-Sprinter 7243 | -6/Archives | Entered Hub_04(d) 7243 | -6/Hub_04(d) | Accompanied by 6 allies 7279 | -6/Hub_04(d) | Discovered exit to Factory (range 14) 7337 | -6/Hub_04(d) | Found Prototype Device 7337 | -6/Hub_04(d) | Identified Exp. Thermal Shield 7361 | -6/Hub_04(d) | Found Prototype Launcher 7361 | -6/Hub_04(d) | Identified Scatter Rocket Array 7413 | -6/Hub_04(d) | Discovered exit to Factory (range 10) 7474 | -6/Hub_04(d) | Destroyed 9 combat bots 7488 | -6/Hub_04(d) | Discovered exit to Factory (range 9) 7540 | -6/Hub_04(d) | Reached level 22 7564 | -6/Hub_04(d) | Incoming investigation squad redirected 7605 | -6/Hub_04(d) | Central database locked down 7621 | -6/Hub_04(d) | Incoming investigation squad redirected 7642 | -6/Hub_04(d) | Garrison activated, responded to threat 7695 | -6/Hub_04(d) | Destroyed 8 combat bots 7757 | -6/Hub_04(d) | Discovered exit to Factory (range 7) 7793 | -6/Hub_04(d) | Identified exit to Garrison 7793 | -6/Hub_04(d) | Entered Garrison 7798 | -6/Garrison | Triggered checkpoint 7822 | -6/Garrison | Triggered checkpoint 7826 | -6/Garrison | Triggered checkpoint 7889 | -6/Garrison | Triggered checkpoint 7929 | -6/Garrison | Discovered exit to Factory (range 8) 8000 | -6/Garrison | Triggered checkpoint 8044 | -6/Garrison | Triggered checkpoint 8058 | -6/Garrison | Garrison Relay disabled 8088 | -6/Garrison | Triggered checkpoint 8097 | -6/Garrison | Discovered exit to Factory (range 13) 8100 | -6/Garrison | Entered Factory 8101 | -5/Factory | Identified exit to Upper Caves 8159 | -5/Factory | Garrison activated, responded to threat 8321 | -5/Factory | Reached level 23 8425 | -5/Factory | Discovered new exit (range 17) 8428 | -5/Factory | Identified exit to Factory 8508 | -5/Factory | Discovered exit to Factory (range 9) 8614 | -5/Factory | Upgraded with Utility slot (x1) 8700 | -5/Factory | First assault squad dispatched 8722 | -5/Factory | Incoming assault squad redirected 8775 | -5/Factory | Fabricated Cld. Cesium-ion Thruster (x1) 9129 | -5/Factory | Build established: Hacker-Sprinter 9392 | -5/Factory | Entered Upper Caves 9412 | -5/Upper Caves | Learned location of Armory (-4) 9427 | -5/Upper Caves | Reached level 24 9428 | -5/Upper Caves | Attracted the attention of an 0b10 outpost 9464 | -5/Upper Caves | Build established: Scavenger-Sprinter 9543 | -5/Upper Caves | Ambushed by wild Derelicts 9590 | -5/Upper Caves | Attracted the attention of an 0b10 checkpoint 9616 | -5/Upper Caves | Discovered new exit (range 14) 9642 | -5/Upper Caves | Identified exit to Upper Caves 9806 | -5/Upper Caves | Entered another Upper Caves area 9808 | -5/Upper Caves | Encountered a Warlord checkpoint 9821 | -5/Upper Caves | Discovered exit to Factory (range 12) 9877 | -5/Upper Caves | Spotted B-75 Beast 9885 | -5/Upper Caves | Destroyed B-75 Beast 9895 | -5/Upper Caves | Attracted the attention of an 0b10 outpost 9944 | -5/Upper Caves | Attracted the attention of an 0b10 checkpoint 9965 | -5/Upper Caves | Discovered new exit (range 5) 9965 | -5/Upper Caves | Identified exit to Warlord 10161 | -5/Upper Caves | Learned 12 Factory zone layouts 10193 | -5/Upper Caves | Entered Warlord 10211 | -5/Warlord | Discovered new exit (range 9) 10213 | -5/Warlord | Identified exit to Proximity Caves 10225 | -5/Warlord | System corruption cleaned by Quarantine Array 10297 | -5/Warlord | Warlord's base attacked by MAIN.C 10297 | -5/Warlord | Met Warlord 10299 | -5/Warlord | Opened Warlord's prototype stash 10301 | -5/Warlord | Found Prototype Reactor 10301 | -5/Warlord | Identified Vortex Chain Reactor 10318 | -5/Warlord | Found Prototype Device 10318 | -5/Warlord | Identified Exp. Cloaking Device 10323 | -5/Warlord | Found Prototype Processor 10323 | -5/Warlord | Identified Exp. Target Analyzer 10326 | -5/Warlord | Found Prototype Device 10326 | -5/Warlord | Identified System Purifier 10344 | -5/Warlord | Learned Testing trap positions 10344 | -5/Warlord | Learned 4 Research zone layouts 10375 | -5/Warlord | Found Signal Generator 10390 | -5/Warlord | Opened side exit 10508 | -5/Warlord | Destroyed 11 combat bots 10543 | -5/Warlord | Warlord forces counterattacked 10590 | -5/Warlord | Entered Proximity Caves 10592 | -4/Proximity Caves | Reached level 25 10594 | -4/Proximity Caves | Destroyed 8 combat bots 10629 | -4/Proximity Caves | Learned Research terminal intel 10778 | -4/Proximity Caves | Discovered exit to Factory (range 9) 11075 | -4/Proximity Caves | Received a Behemoth hack from an annoying Tinkerer 11106 | -4/Proximity Caves | Entered Factory 11107 | -4/Factory | Identified exit to Research 11146 | -4/Factory | Reached level 26 11156 | -4/Factory | Found Exp. Signal Interpreter 11259 | -4/Factory | Upgraded with Power slot (x1) 11259 | -4/Factory | Upgraded with Propulsion slot (x1) 11292 | -4/Factory | Incoming investigation squad redirected 11303 | -4/Factory | Allied Derelicts emerged from ambush trap array 11324 | -4/Factory | P-70 Sage assimilated allied VL-MZP(g) 11383 | -4/Factory | First assault squad dispatched 11398 | -4/Factory | Core integrity fell below 50% 11400 | -4/Factory | Incoming assault squad redirected 11451 | -4/Factory | Destroyed 14 combat bots 11497 | -4/Factory | Local fabrication network quarantined 11632 | -4/Factory | Repaired Broken Force Field 11634 | -4/Factory | Fabricated Cld. Cesium-ion Thruster? 11681 | -4/Factory | Reached level 27 11739 | -4/Factory | Incoming assault squad redirected 11755 | -4/Factory | High security lockdown imminent 11777 | -4/Factory | Core integrity fell below 20% 11800 | -4/Factory | Lost 3 parts (1n2u) 11803 | -4/Factory | Destroyed 9 combat bots 11835 | -4/Factory | High security lockdown engaged 12050 | -4/Factory | Entered Research 12051 | -3/Research | Core integrity fell below 50% 12051 | -3/Research | Core integrity fell below 20% 12052 | -3/Research | Loaded intel: 21 terminal locations 12052 | -3/Research | Reached level 28 12204 | -3/Research | Fabricated Cld. Cesium-ion Thruster? 12213 | -3/Research | Spotted B-86 Titan 12331 | -3/Research | First assault squad dispatched 12346 | -3/Research | Local fabrication network quarantined 12356 | -3/Research | Incoming assault squad redirected 12358 | -3/Research | Incoming assault squad redirected 12513 | -3/Research | High security lockdown imminent 12520 | -3/Research | Garrison activated, responded to threat 12593 | -3/Research | High security lockdown engaged 12620 | -3/Research | Spotted B-86 Titan 12672 | -3/Research | Reached level 29 12705 | -3/Research | Destroyed by G-67 Veteran with Electrolaser Last Messages --------------- 12702_ Switching to secondary target: G-67 Veteran. 12702_ Slug penetrates G-67 Veteran. 12702_ G-67 Veteran suffers critical hit. 12702_ Destroyed Plasma Rifle. 12702_ Slug penetrates G-67 Veteran. 12702_ M-36 Artificer fits Backup Propulsion VII on H-77 Assassin. 12704_ Imp. KE Penetrator blown off. 12704_ Coil Gun blown off. 12704_ E-15 Imp destroyed. 12704_ Penetrated by Slug. [Achievement: 10k Club] [Achievement: 20k Club] [Achievement: 30k Club] [Achievement: 40k Club] [Achievement: 50k Club] [Achievement: This Is Interesting...] [Achievement: Just Browsing] [Achievement: Punisher] [Achievement: Rambo] [Achievement: Achiever] Map ----- +----------------------------------------------------+ | #?#??## " " #??#?# ##??????"?????????????????? | | #?????# ###### ######??"?????????????????? | | #?#?### + +?? ?????????????????? | | ??????#! ### ##?? ?? ? ????????????? | | #?????######+####?# ###????? ? ????????????? | | ?????? ????#???#### #?????????#????????????? | | ???? ? ? ??# ?????# # ??????????????? | | ?? ? ??? ? # ###### # #????????????? | | ???? ? ??# " ! # ???????????? | | #?????#?#+## # #????????????? | | ?????#??# ##+#####"## ##?????????? | | ?????#?## ???#????????? | | ????#?#?# ####### ########+#?#????????? | | ????#???# # # # # ?? ?????????? | | ????????# # = + "+ ?#? ? ?????????? | | ????????# # #Y "%# ???#??? ?????????? | | ??# + # "# ? ???? ? ????????? | | ??# #####+## # #Yg #?? #?? ?#???????? | | ??# # ?##### #* # ? ?? ?? ?????? | | ??#?????? ?#??## #g% *#? ??#?###?#???????? | | ?????? # ? ???########%==%# ##????#??#?????? | | ? ?????#? ?? ##?#?######%##Y# ? ?#??##?###??????? | | ????????? ? ?#####][!![=hgh####?#?###??##??????? | | ???????# ?? ??##??# %%g!!b!g# ??#?###??#?#??????? | | ?????????#?#??####?#%!==[=%=%#??##?#?#?#?##??????? | | ?????????####?#???##[[!=%@g!/#???###?#?##?#??????? | | ???????##?#?#?#????###########?#???###?##?#??????? | | | | | | | | | | | | | | | | | | | | | | | | | | | | | | | | | | | | | | | | | | | | | | | +----------------------------------------------------+ Best States ------------- Heat Dissipation 79 Energy Generation 67 Energy Capacity 2070 Matter Stores 422 Matter Capacity 800 Sight Range 23 Robot Scan Range 20 Terrain Scan Range 20 Terrain Scan Density 410 EM Shielding 2 Armor Coverage 225 Core Shielding 20 Weapon Cycling 20 Evasion (%) 75 Targeting Accuracy 8 Target Analysis 12 Recoil Reduction 6 Kinecelleration 30 Offensive Hacking 15 Defensive Hacking 10 Item Schematics ----------------- Launcher Loader | -7/Factory | Hacked Plasma Sword | -7/Data Miner | Free Exp. Terrain Scan Processor | -7/Data Miner | Free Cmb. Gravmag System | -7/Data Miner | Free Lgt. Regenerative Plating | -7/Data Miner | Free Combat Drone Bay | -7/Data Miner | Free Imp. VTOL Module | -6/Factory | Scanalyzed Imp. Datajack | -6/Factory | Scanalyzed Cld. Cesium-ion Thruster | -6/Factory | Scanalyzed Imp. Particle Charger | -6/Hub_04(d) | Hacked Biometal Leg | -4/Factory | Hacked Robot Schematics ------------------ B-48 Gladiator | -7/Factory | Hacked S-27 Virus | -7/Data Miner | Free G-50 Soldier | -7/Data Miner | Free G-67 Veteran | -7/Data Miner | Free L-41 Fighter | -7/Data Miner | Free I-36 Angel | -7/Data Miner | Free Fabricated ------------ B-48 Gladiator | x3 | -7/Factory Cld. Cesium-ion Thruster | x1 | -6/Factory Cld. Cesium-ion Thruster | x1 | -5/Factory Cld. Cesium-ion Thruster | x1 | -3/Research Alien Tech Used ----------------- Core Expander Achievements -------------- 10k Club 20k Club 30k Club 40k Club 50k Club A Powerful Ally? Achiever Adventurer Armchair Analyst Can't Catch Me Can't Touch This Charge!!! Collateral Damage Cya! Dynamic Key Explorer Giant Slayer Gun Specialist Gunslinger Hehehe I Spy It Was An Accident, I Swear Just Browsing Knowing Is Half The Battle Librarian Oh No You Don't! Ooh, Shiny! Part-time Excavator Party Time Preemptive Strike Prison Break Project G-00 Prolific Hacker Punisher Quantum Hacking Rambo Reappropriation Revising The Future Rockin' Loadout The Oracle This Is Interesting... root@ Challenges ------------ None RPGLIKE | -11 -10 -9 -8 -8 -7 -7 -7 -7 -6 -6 -6 -6 -6 -6 -6 -6 -6 -5 -5 -5 -5 -4 -4 -3 --------- Run | Scr Mat Mat Mat Gar Fac Low Low Dat Pro Fac Was Fac Ext Cet Arc Hub Gar Fac Upp Upp War Pro Fac Res Levels Raised 28 | . . 3 2 3 5 . 2 . 2 1 . 1 1 . . 1 . 1 1 . . 1 2 2 XP Earned 45061 | 3000 1145 4192 2799 4305 7357 1179 1535 220 3348 1103 67 1444 1326 536 245 936 344 2290 343 373 576 1168 2832 2398 XP Spent 43340 | 1870 1000 4150 1125 1400 8265 2000 1100 . 4250 2200 800 2965 . 1500 . . . 2600 . . . . 6590 1525 Upgrades 91 | 8 2 7 7 1 17 11 2 . 3 5 1 5 . 1 . . . 1 . . . . 15 5 Power Slot 2 | . . . . . . . 1 . . . . . . . . . . . . . . . 1 . Propulsion Slot 4 | . . 1 1 . . . . . . . . 1 . . . . . . . . . . 1 . Utility Slot 8 | . . 3 . 1 2 . . . 1 . . . . . . . . 1 . . . . . . Weapon Slot 4 | 1 1 . . . 1 . . . . . . 1 . . . . . . . . . . . . Core Integrity 31 | . . . 2 . 6 10 . . . . . . . . . . . . . . . . 8 5 Heat Dissipation 9 | 2 . . 1 . . . . . . . . 2 . . . . . . . . . . 4 . Energy Generation 2 | 1 . . . . 1 . . . . . . . . . . . . . . . . . . . Energy Storage 2 | . . . . . 2 . . . . . . . . . . . . . . . . . . . Matter Storage 2 | . 1 . . . . . . . . . . 1 . . . . . . . . . . . . Mass Support 8 | 1 . 2 . . 1 1 1 . 1 . 1 . . . . . . . . . . . . . Inventory Capacity 7 | 2 . 1 . . 1 . . . 1 . . . . 1 . . . . . . . . 1 . Sight Range 1 | 1 . . . . . . . . . . . . . . . . . . . . . . . . Sensor Range 2 | . . . 2 . . . . . . . . . . . . . . . . . . . . . Terrain Scan Density 2 | . . . 1 . 1 . . . . . . . . . . . . . . . . . . . Ranged Accuracy 2 | . . . . . . . . . . 2 . . . . . . . . . . . . . . Hack Attack % 3 | . . . . . 2 . . . . 1 . . . . . . . . . . . . . . Hack Defense % 2 | . . . . . . . . . . 2 . . . . . . . . . . . . . . Protomatter Created 9208 | . 132 225 282 201 373 177 466 . 371 162 . 782 444 254 . 747 293 964 439 . 448 165 1269 1014 Integrity Restored 18484 | . 239 391 542 732 582 276 1302 . 1347 257 . 1185 1205 716 178 876 565 2021 292 . 715 313 3262 1488 Core 15484 | . 182 284 451 732 582 276 1302 . 816 119 . 1011 886 401 143 685 555 1431 201 . 579 289 3071 1488 Parts 3000 | . 57 107 91 . . . . . 531 138 . 174 319 315 35 191 10 590 91 . 136 24 191 . Protomatter Decayed 3268 | . 5 38 37 . . 60 136 . 61 69 . 429 196 223 157 442 103 239 285 . 366 59 322 41 Game ------ Seed ReactiveCloakTearclaws Manual? 0 Play Time 10:57:11 Cumulative 40.5 hours Start 2019.12.27 @ 22:39:32 End 2020.01.06 @ 21:46:04 Sessions 23 Manual Loads 0 Difficulty Rogue Special Mode Winter2019/RPGLIKE Game No. 30 Rogue 30 Adventurer 0 Explorer 0 Win Type - Total 0 Types 0/0/0/0/0/0/0 Lore% 25 Gallery% 30 Achievement% 37 Wizard Run 0 Options --------- ASCII 0 Keyboard 0 Movement Mouse Keybinds 0 Fullscreen 1 Font 18/SmallcapsGlow Map View 76x50 Tactical HUD 1 Map Filters NONE Filters NONE Steam 1 RUN: e22e86cc-8aee-4ca4-9d01-8ed1932c63a2